Workbook

Sheet Sheet1
A2: ՀՀ մարդու իրավունքների պաշտպանի աշխատակազմի 2017
A3: թվականի փոփոխված գնումների պլան 04.12.2017 թվականի դրությամբ
A5: Կոդը | B5: Անվանումը | C5: ¶ÝÙ³Ý Ó¨Á | D5: â³÷Ù³Ý ÙÇ³íáñը | E5: ØÇ³íáñÇ ·ÇÝÁ | F5: ¶ումարը (Ñ³½³ñ ¹ñ³Ùáí) | G5: àðÆòª 1. ÀÜÂ²òÆÎ Ì²Êêºðª ÀÜ¸²ØºÜÀ (Ñ³½³ñ ¹ñ³Ùáí) | N5: Þ²ðàôÜ²Î²Î²Ü Ì²Êêºð | V5: ¶àðÌàôÔØ²Ü ºì Þðæ²¶²ÚàôÂÚàôÜÜºðÆ Ì²Êêºð | AF5: ä²ÚØ²Ü²¶ð²ÚÆÜ Ì²è²ÚàôÂÚàôÜÜºðÆ Òºèø ´ºðàôØ | AP5: ²ÚÈ Ø²êÜ²¶Æî²Î²Ü Ì²è²ÚàôÂÚàôÜÜºðÆ Òºèø ´ºðàôØ | AR5: ÀÜÂ²òÆÎ Üàðà¶àôØ ºì ä²Ðä²ÜàôØ (Ì²è²ÚàôÂÚàôÜÜºð ºì ÜÚàôÂºð) | BB5: ÜÚàôÂºð | BL5: Î³åÇï³É ¹ñ³Ù³ßÝáñÑÝ»ñ å»ï³Ï³Ý Ñ³ïí³ÍÇ ³ÛÉ Ù³Ï³ñ¹³ÏÝ»ñÇÝ | BN5: ²ÚÈ Ì²Êêºð | BQ5: 2. Î²äÆî²È Ì²Êêºð ª ÀÜ¸²ØºÜÀ (Ñ³½³ñ ¹ñ³Ùáí) | BT5: ÞºÜøºð ¨ ÞÆÜàôÂÚàôÜÜºð | BZ5: ØºøºÜ²Üºð ºì ê²ðø²ìàðàôØÜºð | CI5: ²ÚÈ ÐÆØÜ²Î²Ü ØÆæàòÜºð | CL5: ²ðî²¸ð²Î²Ü ÜÞ²Ü²ÎàôÂÚ²Ü ä²Þ²ðÜºð | CN5: ìºð²ì²Ö²èøÆ Ð²Ø²ð Ü²Ê²îºêì²Ì ²äð²ÜøÜºð | CP5: êä²èØ²Ü Üä²î²Îàì ä²ÐìàÔ ä²Þ²ðÜºð | CR5: ´²ðÒð²ðÄºø ²ÎîÆìÜºð | CT5: ÐàÔ | CV5: ÀÜ¸ºðø²ÚÆÜ ²ÎîÆìÜºð | CX5: ²ÚÈ ´Ü²Î²Ü Ì²¶àôØ àôÜºòàÔ ²ÎîÆìÜºð | CZ5: àâ ÜÚàôÂ²Î²Ü àâ ²ðî²¸ð²Î²Ü ²ÎîÆìÜºð | DB5: ø³Ý³Ïը
A6: ՀՀ մարդու իրավունքների պաշտպանի աշխատակազմ | F6: =F9+F20 -> 5688.969
A7: Բաժին N 03 Խումբ N 03 Դաս N 02
A8: Ð³Û³ëï³ÝáõÙ ÷³Ëëï³Ï³Ý»ñÇ ¨ ³å³ëï³Ý Ñ³ÛóáÕÝ»ñÇ Çñ³íáõÝùÝ»ñÇ å³ßïå³ÝáõÃÛ³Ý áÉáñïáõÙ Ø³ñ¹áõ Çñ³íáõÝùÝ»ñÇ å³ßïå³ÝÇ ³ßË³ï³Ï³½ÙÇ Ï³ñáÕáõÃÛáõÝÝ»ñÇ ½³ñ·³óáõÙ
A9: ՄԱՍ I. ԱՊՐԱՆՔՆԵՐ | F9: =SUM(F10:F19) -> 2110.369 | G9: =SUM(G10:G104) -> 4192.169 | H9: X | I9: =SUM(I10:I480) -> 0 | J9: X | K9: =SUM(K10:K480) -> 0 | L9: X | M9: =SUM(M10:M480) -> 0 | N9: X | O9: =SUM(O10:O480) -> 0 | P9: X | Q9: =SUM(Q10:Q480) -> 0 | R9: X | S9: =SUM(S10:S480) -> 370 | T9: X | U9: =SUM(U10:U480) -> 0 | V9: X | W9: =SUM(W10:W480) -> 0 | X9: X | Y9: =SUM(Y10:Y480) -> 0 | Z9: X | AA9: =SUM(AA10:AA480) -> 492.2 | AB9: X | AC9: =SUM(AC10:AC480) -> 0 | AD9: X | AE9: =SUM(AE10:AE480) -> 0 | AF9: X | AG9: =SUM(AG10:AG480) -> 671.9 | AH9: X | AI9: =SUM(AI10:AI480) -> 0 | AJ9: X | AK9: =SUM(AK10:AK480) -> 0 | AL9: X | AM9: =SUM(AM10:AM480) -> 0 | AN9: X | AO9: =SUM(AO10:AO480) -> 2044.5 | AP9: X | AQ9: =SUM(AQ10:AQ480) -> 0 | AR9: X | AS9: =SUM(AS10:AS480) -> 0 | AT9: X | AU9: =SUM(AU10:AU480) -> 0 | AV9: X | AW9: =SUM(AW10:AW480) -> 30 | AX9: X | AY9: =SUM(AY10:AY480) -> 0 | AZ9: X | BA9: =SUM(BA10:BA480) -> 0 | BB9: X | BC9: =SUM(BC10:BC480) -> 185 | BD9: X | BE9: =SUM(BE10:BE480) -> 0 | BF9: X | BG9: =SUM(BG10:BG480) -> 0 | BH9: X | BI9: =SUM(BI10:BI480) -> 238.769 | BJ9: X | BK9: =SUM(BK10:BK480) -> 159.8 | BL9: X | BM9: =SUM(BM10:BM480) -> 0 | BN9: X | BO9: =SUM(BO10:BO480) -> 0 | BQ9: =BS9+BU9+BW9+BY9+CA9+CC9+CE9+CG9+CI9+CK9+CM9+CO9+CQ9+CS9+CU9+CW9+CY9+DA9 -> 477 | BR9: X | BS9: =SUM(BS10:BS480) -> 0 | BT9: X | BU9: =SUM(BU10:BU480) -> 0 | BV9: X | BW9: =SUM(BW10:BW480) -> 0 | BX9: X | BY9: =SUM(BY10:BY480) -> 337 | BZ9: X | CA9: =SUM(CA10:CA480) -> 140 | CB9: X | CC9: =SUM(CC10:CC480) -> 0 | CD9: X | CE9: =SUM(CE10:CE480) -> 0 | CF9: X | CG9: =SUM(CG10:CG480) -> 0 | CH9: X | CI9: =SUM(CI10:CI480) -> 0 | CJ9: X | CK9: =SUM(CK10:CK480) -> 0 | CL9: X | CM9: =SUM(CM10:CM480) -> 0 | CN9: X | CO9: =SUM(CO10:CO480) -> 0 | CP9: X | CQ9: =SUM(CQ10:CQ480) -> 0 | CR9: X | CS9: =SUM(CS10:CS480) -> 0 | CT9: X | CU9: =SUM(CU10:CU480) -> 0 | CV9: X | CW9: =SUM(CW10:CW480) -> 0 | CX9: X | CY9: =SUM(CY10:CY480) -> 0 | CZ9: X | DA9: =SUM(DA10:DA480) -> 0
A10: 09132200 | B10: µ»Ý½ÇÝ, é»·áõÉÛ³ñ | C10: ՇՀ | D10: ÉÇïñ | E10: 370 | F10: =G10+BQ10 -> 185 | G10: =I10+K10+M10+O10+Q10+S10+U10+W10+Y10+AC10+AE10+AG10+AI10+AK10+AM10+AO10+AQ10+AS10+AU10+AW10+AY10+BA10+BC10+BE10+BG10+BI10+BK10+BM10+BO10 -> 185 | I10: =E10*H10/1000 -> 0 | K10: =E10*J10/1000 -> 0 | M10: =E10*L10/1000 -> 0 | O10: =E10*N10/1000 -> 0 | Q10: =E10*P10/1000 -> 0 | S10: =E10*R10/1000 -> 0 | U10: =E10*T10/1000 -> 0 | W10: =E10*V10/1000 -> 0 | Y10: =E10*X10/1000 -> 0 | AA10: =K10*Z10/1000 -> 0 | AC10: =E10*AB10/1000 -> 0 | AE10: =E10*AD10/1000 -> 0 | AG10: =E10*AF10/1000 -> 0 | AI10: =E10*AH10/1000 -> 0 | AK10: =E10*AJ10/1000 -> 0 | AM10: =E10*AL10/1000 -> 0 | AO10: =E10*AN10/1000 -> 0 | AQ10: =E10*AP10/1000 -> 0 | AS10: =E10*AR10/1000 -> 0 | AU10: =E10*AT10/1000 -> 0 | AW10: =E10*AV10/1000 -> 0 | AY10: =E10*AX10/1000 -> 0 | BA10: =E10*AZ10/1000 -> 0 | BB10: 500 | BC10: =E10*BB10/1000 -> 185 | BE10: =E10*BD10/1000 -> 0 | BG10: =E10*BF10/1000 -> 0 | BI10: =E10*BH10/1000 -> 0 | BK10: =E10*BJ10/1000 -> 0 | BM10: =E10*BL10/1000 -> 0 | BO10: =E10*BN10/1000 -> 0 | BQ10: =BS10+BU10+BW10+BY10+CA10+CC10+CE10+CG10+CI10+CK10+CM10+CO10+CQ10+CS10+CU10+CW10+CY10+DA10 -> 0 | BS10: =E10*BR10/1000 -> 0 | BU10: =E10*BT10/1000 -> 0 | BW10: =E10*BV10/1000 -> 0 | BY10: =E10*BX10/1000 -> 0 | CA10: =E10*BZ10/1000 -> 0 | CC10: =E10*CB10/1000 -> 0 | CE10: =E10*CD10/1000 -> 0 | CG10: =E10*CF10/1000 -> 0 | CI10: =E10*CH10/1000 -> 0 | CK10: =E10*CJ10/1000 -> 0 | CM10: =E10*CL10/1000 -> 0 | CO10: =E10*CN10/1000 -> 0 | CQ10: =E10*CP10/1000 -> 0 | CS10: =E10*CR10/1000 -> 0 | CU10: =E10*CT10/1000 -> 0 | CW10: =E10*CV10/1000 -> 0 | CY10: =E10*CX10/1000 -> 0 | DA10: =E10*CZ10/1000 -> 0 | DB10: =H10+J10+L10+N10+P10+R10+T10+V10+X10+AB10+AD10+AF10+AH10+AJ10+AL10+AN10+AP10+AR10+AT10+AV10+AX10+AZ10+BB10+BD10+BF10+BH10+BJ10+BL10+BN10+BR10+BT10+BV10+BX10+BZ10+CB10+CD10+CF10+CH10+CJ10+CL10+CN10+CP10+CR10+CT10+CV10+CX10+CZ10 -> 500
A11: 22811150 | B11: ÝáÃ³ï»ïñ»ñ | C11: ԲԸԱՀ | D11: Ñ³ï | E11: 500 | F11: 30 | G11: =I11+K11+M11+O11+Q11+S11+U11+W11+Y11+AC11+AE11+AG11+AI11+AK11+AM11+AO11+AQ11+AS11+AU11+AW11+AY11+BA11+BC11+BE11+BG11+BI11+BK11+BM11+BO11 -> 30 | I11: 0 | K11: 0 | M11: 0 | O11: 0 | Q11: 0 | S11: 0 | U11: 0 | W11: 0 | Y11: 0 | AA11: =K11*Z11/1000 -> 0 | AC11: 0 | AE11: 0 | AG11: 0 | AI11: 0 | AK11: 0 | AM11: 0 | AO11: 0 | AQ11: 0 | AS11: 0 | AU11: 0 | AV11: 60 | AW11: 30 | AY11: 0 | BA11: 0 | BC11: 0 | BE11: 0 | BG11: 0 | BI11: 0 | BK11: 0 | BM11: 0 | BO11: 0 | BQ11: 0 | BS11: 0 | BU11: 0 | BW11: 0 | BY11: 0 | CA11: 0 | CC11: 0 | CE11: 0 | CG11: 0 | CI11: 0 | CK11: 0 | CM11: 0 | CO11: 0 | CQ11: 0 | CS11: 0 | CU11: 0 | CW11: 0 | CY11: 0 | DA11: 0 | DB11: 60
A12: 31684400 | B12: í³ñ¹³Ï | C12: ԲԸԱՀ | D12: Ñ³ï | E12: 580 | F12: =G12+BQ12 -> 34.8 | G12: =I12+K12+M12+O12+Q12+S12+U12+W12+Y12+AC12+AE12+AG12+AI12+AK12+AM12+AO12+AQ12+AS12+AU12+AW12+AY12+BA12+BC12+BE12+BG12+BI12+BK12+BM12+BO12+AA12 -> 34.8 | I12: =E12*H12/1000 -> 0 | K12: =E12*J12/1000 -> 0 | M12: =E12*L12/1000 -> 0 | O12: =E12*N12/1000 -> 0 | Q12: =E12*P12/1000 -> 0 | S12: =E12*R12/1000 -> 0 | U12: =E12*T12/1000 -> 0 | W12: =E12*V12/1000 -> 0 | Y12: =E12*X12/1000 -> 0 | AA12: =E12*Z12/1000 -> 0 | AC12: =E12*AB12/1000 -> 0 | AE12: =E12*AD12/1000 -> 0 | AG12: =E12*AF12/1000 -> 0 | AI12: =E12*AH12/1000 -> 0 | AK12: =E12*AJ12/1000 -> 0 | AM12: =E12*AL12/1000 -> 0 | AO12: =E12*AN12/1000 -> 0 | AQ12: =E12*AP12/1000 -> 0 | AS12: =E12*AR12/1000 -> 0 | AU12: =E12*AT12/1000 -> 0 | AW12: =E12*AV12/1000 -> 0 | AY12: =E12*AX12/1000 -> 0 | BA12: =E12*AZ12/1000 -> 0 | BC12: =E12*BB12/1000 -> 0 | BE12: =E12*BD12/1000 -> 0 | BG12: =E12*BF12/1000 -> 0 | BH12: 60 | BI12: =E12*BH12/1000 -> 34.8 | BK12: =E12*BJ12/1000 -> 0 | BM12: =E12*BL12/1000 -> 0 | BO12: =E12*BN12/1000 -> 0 | BQ12: =BS12+BU12+BW12+BY12+CA12+CC12+CE12+CG12+CI12+CK12+CM12+CO12+CQ12+CS12+CU12+CW12+CY12+DA12 -> 0 | BS12: =E12*BR12/1000 -> 0 | BU12: =E12*BT12/1000 -> 0 | BW12: =E12*BV12/1000 -> 0 | BY12: =E12*BX12/1000 -> 0 | CA12: =E12*BZ12/1000 -> 0 | CC12: =E12*CB12/1000 -> 0 | CE12: =E12*CD12/1000 -> 0 | CG12: =E12*CF12/1000 -> 0 | CI12: =E12*CH12/1000 -> 0 | CK12: =E12*CJ12/1000 -> 0 | CM12: =E12*CL12/1000 -> 0 | CO12: =E12*CN12/1000 -> 0 | CQ12: =E12*CP12/1000 -> 0 | CS12: =E12*CR12/1000 -> 0 | CU12: =E12*CT12/1000 -> 0 | CW12: =E12*CV12/1000 -> 0 | CY12: =E12*CX12/1000 -> 0 | DA12: =E12*CZ12/1000 -> 0 | DB12: =H12+J12+L12+N12+P12+R12+T12+V12+X12+AB12+AD12+AF12+AH12+AJ12+AL12+AN12+AP12+AR12+AT12+AV12+AX12+AZ12+BB12+BD12+BF12+BH12+BJ12+BL12+BN12+BR12+BT12+BV12+BX12+BZ12+CB12+CD12+CF12+CH12+CJ12+CL12+CN12+CP12+CR12+CT12+CV12+CX12+CZ12 -> 60
A13: 32551160 | B13: Ñ»é³Ëáë³ÛÇÝ ë³ñù»ñ | C13: ՇՀ | D13: Ñ³ï | E13: 70000 | F13: =G13+BQ13 -> 140 | G13: 0 | I13: =E13*H13/1000 -> 0 | K13: =E13*J13/1000 -> 0 | M13: =E13*L13/1000 -> 0 | O13: =E13*N13/1000 -> 0 | Q13: =E13*P13/1000 -> 0 | S13: =E13*R13/1000 -> 0 | U13: =E13*T13/1000 -> 0 | W13: =E13*V13/1000 -> 0 | Y13: =E13*X13/1000 -> 0 | AA13: 0 | AC13: =E13*AB13/1000 -> 0 | AE13: =E13*AD13/1000 -> 0 | AG13: =E13*AF13/1000 -> 0 | AI13: =E13*AH13/1000 -> 0 | AK13: =E13*AJ13/1000 -> 0 | AM13: =E13*AL13/1000 -> 0 | AO13: =E13*AN13/1000 -> 0 | AQ13: =E13*AP13/1000 -> 0 | AS13: =E13*AR13/1000 -> 0 | AU13: =E13*AT13/1000 -> 0 | AW13: =E13*AV13/1000 -> 0 | AY13: =E13*AX13/1000 -> 0 | BA13: =E13*AZ13/1000 -> 0 | BC13: =E13*BB13/1000 -> 0 | BE13: =E13*BD13/1000 -> 0 | BG13: =E13*BF13/1000 -> 0 | BI13: =E13*BH13/1000 -> 0 | BK13: =E13*BJ13/1000 -> 0 | BM13: =E13*BL13/1000 -> 0 | BO13: =E13*BN13/1000 -> 0 | BQ13: =BS13+BU13+BW13+BY13+CA13+CC13+CE13+CG13+CI13+CK13+CM13+CO13+CQ13+CS13+CU13+CW13+CY13+DA13 -> 140 | BS13: =E13*BR13/1000 -> 0 | BU13: =E13*BT13/1000 -> 0 | BW13: =E13*BV13/1000 -> 0 | BY13: =E13*BX13/1000 -> 0 | BZ13: 2 | CA13: =E13*BZ13/1000 -> 140 | CC13: =E13*CB13/1000 -> 0 | CE13: =E13*CD13/1000 -> 0 | CG13: =E13*CF13/1000 -> 0 | CI13: =E13*CH13/1000 -> 0 | CK13: =E13*CJ13/1000 -> 0 | CM13: =E13*CL13/1000 -> 0 | CO13: =E13*CN13/1000 -> 0 | CQ13: =E13*CP13/1000 -> 0 | CS13: =E13*CR13/1000 -> 0 | CU13: =E13*CT13/1000 -> 0 | CW13: =E13*CV13/1000 -> 0 | CY13: =E13*CX13/1000 -> 0 | DA13: =E13*CZ13/1000 -> 0 | DB13: =H13+J13+L13+N13+P13+R13+T13+V13+X13+AB13+AD13+AF13+AH13+AJ13+AL13+AN13+AP13+AR13+AT13+AV13+AX13+AZ13+BB13+BD13+BF13+BH13+BJ13+BL13+BN13+BR13+BT13+BV13+BX13+BZ13+CB13+CD13+CF13+CH13+CJ13+CL13+CN13+CP13+CR13+CT13+CV13+CX13+CZ13 -> 2
A14: 32551160 | B14: Ñ»é³Ëáë³ÛÇÝ ë³ñù»ñ | C14: ՇՀ | D14: Ñ³ï | E14: 7990 | F14: =G14+BQ14 -> 159.8 | G14: 159.8 | I14: =E14*H14/1000 -> 0 | K14: =E14*J14/1000 -> 0 | M14: =E14*L14/1000 -> 0 | O14: =E14*N14/1000 -> 0 | Q14: =E14*P14/1000 -> 0 | S14: =E14*R14/1000 -> 0 | U14: =E14*T14/1000 -> 0 | W14: =E14*V14/1000 -> 0 | Y14: =E14*X14/1000 -> 0 | AA14: 0 | AC14: =E14*AB14/1000 -> 0 | AE14: =E14*AD14/1000 -> 0 | AG14: =E14*AF14/1000 -> 0 | AI14: =E14*AH14/1000 -> 0 | AK14: =E14*AJ14/1000 -> 0 | AM14: =E14*AL14/1000 -> 0 | AO14: =E14*AN14/1000 -> 0 | AQ14: =E14*AP14/1000 -> 0 | AS14: =E14*AR14/1000 -> 0 | AU14: =E14*AT14/1000 -> 0 | AW14: =E14*AV14/1000 -> 0 | AY14: =E14*AX14/1000 -> 0 | BA14: =E14*AZ14/1000 -> 0 | BC14: =E14*BB14/1000 -> 0 | BE14: =E14*BD14/1000 -> 0 | BG14: =E14*BF14/1000 -> 0 | BI14: =E14*BH14/1000 -> 0 | BJ14: 20 | BK14: =E14*BJ14/1000 -> 159.8 | BM14: =E14*BL14/1000 -> 0 | BO14: =E14*BN14/1000 -> 0 | BQ14: =BS14+BU14+BW14+BY14+CA14+CC14+CE14+CG14+CI14+CK14+CM14+CO14+CQ14+CS14+CU14+CW14+CY14+DA14 -> 0 | BS14: =E14*BR14/1000 -> 0 | BU14: =E14*BT14/1000 -> 0 | BW14: =E14*BV14/1000 -> 0 | BY14: =E14*BX14/1000 -> 0 | CA14: =E14*BZ14/1000 -> 0 | CC14: =E14*CB14/1000 -> 0 | CE14: =E14*CD14/1000 -> 0 | CG14: =E14*CF14/1000 -> 0 | CI14: =E14*CH14/1000 -> 0 | CK14: =E14*CJ14/1000 -> 0 | CM14: =E14*CL14/1000 -> 0 | CO14: =E14*CN14/1000 -> 0 | CQ14: =E14*CP14/1000 -> 0 | CS14: =E14*CR14/1000 -> 0 | CU14: =E14*CT14/1000 -> 0 | CW14: =E14*CV14/1000 -> 0 | CY14: =E14*CX14/1000 -> 0 | DA14: =E14*CZ14/1000 -> 0 | DB14: =H14+J14+L14+N14+P14+R14+T14+V14+X14+AB14+AD14+AF14+AH14+AJ14+AL14+AN14+AP14+AR14+AT14+AV14+AX14+AZ14+BB14+BD14+BF14+BH14+BJ14+BL14+BN14+BR14+BT14+BV14+BX14+BZ14+CB14+CD14+CF14+CH14+CJ14+CL14+CN14+CP14+CR14+CT14+CV14+CX14+CZ14 -> 20
A15: 38651160 | B15: Ãí³ÛÇÝ Éáõë³ÝÏ³ñã³Ï³Ý ³å³ñ³ïÝ»ñ | C15: ՇՀ | D15: Ñ³ï | E15: 337000 | F15: =G15+BQ15 -> 337 | G15: 0 | I15: =E15*H15/1000 -> 0 | K15: =E15*J15/1000 -> 0 | M15: =E15*L15/1000 -> 0 | O15: =E15*N15/1000 -> 0 | Q15: =E15*P15/1000 -> 0 | S15: =E15*R15/1000 -> 0 | U15: =E15*T15/1000 -> 0 | W15: =E15*V15/1000 -> 0 | Y15: =E15*X15/1000 -> 0 | AA15: 0 | AC15: =E15*AB15/1000 -> 0 | AE15: =E15*AD15/1000 -> 0 | AG15: =E15*AF15/1000 -> 0 | AI15: =E15*AH15/1000 -> 0 | AK15: =E15*AJ15/1000 -> 0 | AM15: =E15*AL15/1000 -> 0 | AO15: =E15*AN15/1000 -> 0 | AQ15: =E15*AP15/1000 -> 0 | AS15: =E15*AR15/1000 -> 0 | AU15: =E15*AT15/1000 -> 0 | AW15: =E15*AV15/1000 -> 0 | AY15: =E15*AX15/1000 -> 0 | BA15: =E15*AZ15/1000 -> 0 | BC15: =E15*BB15/1000 -> 0 | BE15: =E15*BD15/1000 -> 0 | BG15: =E15*BF15/1000 -> 0 | BI15: =E15*BH15/1000 -> 0 | BK15: =E15*BJ15/1000 -> 0 | BM15: =E15*BL15/1000 -> 0 | BO15: =E15*BN15/1000 -> 0 | BQ15: =BS15+BU15+BW15+BY15+CA15+CC15+CE15+CG15+CI15+CK15+CM15+CO15+CQ15+CS15+CU15+CW15+CY15+DA15 -> 337 | BS15: =E15*BR15/1000 -> 0 | BU15: =E15*BT15/1000 -> 0 | BW15: =E15*BV15/1000 -> 0 | BX15: 1 | BY15: =E15*BX15/1000 -> 337 | CA15: =E15*BZ15/1000 -> 0 | CC15: =E15*CB15/1000 -> 0 | CE15: =E15*CD15/1000 -> 0 | CG15: =E15*CF15/1000 -> 0 | CI15: =E15*CH15/1000 -> 0 | CK15: =E15*CJ15/1000 -> 0 | CM15: =E15*CL15/1000 -> 0 | CO15: =E15*CN15/1000 -> 0 | CQ15: =E15*CP15/1000 -> 0 | CS15: =E15*CR15/1000 -> 0 | CU15: =E15*CT15/1000 -> 0 | CW15: =E15*CV15/1000 -> 0 | CY15: =E15*CX15/1000 -> 0 | DA15: =E15*CZ15/1000 -> 0 | DB15: =H15+J15+L15+N15+P15+R15+T15+V15+X15+AB15+AD15+AF15+AH15+AJ15+AL15+AN15+AP15+AR15+AT15+AV15+AX15+AZ15+BB15+BD15+BF15+BH15+BJ15+BL15+BN15+BR15+BT15+BV15+BX15+BZ15+CB15+CD15+CF15+CH15+CJ15+CL15+CN15+CP15+CR15+CT15+CV15+CX15+CZ15 -> 1
A16: 44322500 | B16: Ù³ÉáõËÝ»ñ | C16: ՇՀ | D16: Ù | E16: 148.6 | F16: 135.969 | G16: 135.969 | I16: 0 | K16: 0 | M16: 0 | O16: 0 | Q16: 0 | S16: 0 | U16: 0 | W16: 0 | Y16: 0 | AA16: 0 | AC16: 0 | AE16: 0 | AG16: 0 | AI16: 0 | AK16: 0 | AM16: 0 | AO16: 0 | AQ16: 0 | AS16: 0 | AU16: 0 | AW16: 0 | AY16: 0 | BA16: 0 | BC16: 0 | BE16: 0 | BG16: 0 | BH16: 915 | BI16: 135.969 | BK16: 0 | BM16: 0 | BO16: 0 | BQ16: 0 | BS16: 0 | BU16: 0 | BW16: 0 | BY16: 0 | CA16: 0 | CC16: 0 | CE16: 0 | CG16: 0 | CI16: 0 | CK16: 0 | CM16: 0 | CO16: 0 | CQ16: 0 | CS16: 0 | CU16: 0 | CW16: 0 | CY16: 0 | DA16: 0 | DB16: 915
A17: 44331400 | B17: åñáýÇÉÝ»ñ | C17: ՇՀ | D17: Ù | E17: 425 | F17: =G17+BQ17 -> 68 | G17: 68 | I17: =E17*H17/1000 -> 0 | K17: =E17*J17/1000 -> 0 | M17: =E17*L17/1000 -> 0 | O17: =E17*N17/1000 -> 0 | Q17: =E17*P17/1000 -> 0 | S17: =E17*R17/1000 -> 0 | U17: =E17*T17/1000 -> 0 | W17: =E17*V17/1000 -> 0 | Y17: =E17*X17/1000 -> 0 | AA17: 0 | AC17: =E17*AB17/1000 -> 0 | AE17: =E17*AD17/1000 -> 0 | AG17: =E17*AF17/1000 -> 0 | AI17: =E17*AH17/1000 -> 0 | AK17: =E17*AJ17/1000 -> 0 | AM17: =E17*AL17/1000 -> 0 | AO17: =E17*AN17/1000 -> 0 | AQ17: =E17*AP17/1000 -> 0 | AS17: =E17*AR17/1000 -> 0 | AU17: =E17*AT17/1000 -> 0 | AW17: =E17*AV17/1000 -> 0 | AY17: =E17*AX17/1000 -> 0 | BA17: =E17*AZ17/1000 -> 0 | BC17: =E17*BB17/1000 -> 0 | BE17: =E17*BD17/1000 -> 0 | BG17: =E17*BF17/1000 -> 0 | BH17: 160 | BI17: =E17*BH17/1000 -> 68 | BK17: =E17*BJ17/1000 -> 0 | BM17: =E17*BL17/1000 -> 0 | BO17: =E17*BN17/1000 -> 0 | BQ17: =BS17+BU17+BW17+BY17+CA17+CC17+CE17+CG17+CI17+CK17+CM17+CO17+CQ17+CS17+CU17+CW17+CY17+DA17 -> 0 | BS17: =E17*BR17/1000 -> 0 | BU17: =E17*BT17/1000 -> 0 | BW17: =E17*BV17/1000 -> 0 | BY17: =E17*BX17/1000 -> 0 | CA17: =E17*BZ17/1000 -> 0 | CC17: =E17*CB17/1000 -> 0 | CE17: =E17*CD17/1000 -> 0 | CG17: =E17*CF17/1000 -> 0 | CI17: =E17*CH17/1000 -> 0 | CK17: =E17*CJ17/1000 -> 0 | CM17: =E17*CL17/1000 -> 0 | CO17: =E17*CN17/1000 -> 0 | CQ17: =E17*CP17/1000 -> 0 | CS17: =E17*CR17/1000 -> 0 | CU17: =E17*CT17/1000 -> 0 | CW17: =E17*CV17/1000 -> 0 | CY17: =E17*CX17/1000 -> 0 | DA17: =E17*CZ17/1000 -> 0 | DB17: =H17+J17+L17+N17+P17+R17+T17+V17+X17+AB17+AD17+AF17+AH17+AJ17+AL17+AN17+AP17+AR17+AT17+AV17+AX17+AZ17+BB17+BD17+BF17+BH17+BJ17+BL17+BN17+BR17+BT17+BV17+BX17+BZ17+CB17+CD17+CF17+CH17+CJ17+CL17+CN17+CP17+CR17+CT17+CV17+CX17+CZ17 -> 160
A18: 32541400 | B18: ավտոմատային հեռախոսային սարքեր | C18: ԳՀ | D18: հատ | E18: 319800 | F18: =DB18*E18/1000 -> 319.8 | I18: =E18*H18/1000 -> 0 | K18: =E18*J18/1000 -> 0 | M18: =E18*L18/1000 -> 0 | O18: =E18*N18/1000 -> 0 | Q18: =E18*P18/1000 -> 0 | S18: =E18*R18/1000 -> 0 | U18: =E18*T18/1000 -> 0 | W18: =E18*V18/1000 -> 0 | Y18: =E18*X18/1000 -> 0 | AA18: =E18*Z18/1000 -> 0 | AC18: =E18*AB18/1000 -> 0 | AE18: =E18*AD18/1000 -> 0 | AG18: =E18*AF18/1000 -> 0 | AI18: =E18*AH18/1000 -> 0 | AK18: =E18*AJ18/1000 -> 0 | AM18: =E18*AL18/1000 -> 0 | AO18: =E18*AN18/1000 -> 0 | AQ18: =E18*AP18/1000 -> 0 | AS18: =E18*AR18/1000 -> 0 | AU18: =E18*AT18/1000 -> 0 | AW18: =E18*AV18/1000 -> 0 | AY18: =E18*AX18/1000 -> 0 | BA18: =E18*AZ18/1000 -> 0 | BC18: =E18*BB18/1000 -> 0 | BE18: =E18*BD18/1000 -> 0 | BG18: =E18*BF18/1000 -> 0 | BK18: =E18*BJ18/1000 -> 0 | BM18: =E18*BL18/1000 -> 0 | BO18: =E18*BN18/1000 -> 0 | BQ18: =BS18+BU18+BW18+BY18+CA18+CC18+CE18+CG18+CI18+CK18+CM18+CO18+CQ18+CS18+CU18+CW18+CY18+DA18 -> 0 | BS18: =E18*BR18/1000 -> 0 | BU18: =E18*BT18/1000 -> 0 | BW18: =E18*BV18/1000 -> 0 | BY18: =E18*BX18/1000 -> 0 | CA18: =E18*BZ18/1000 -> 0 | CC18: =E18*CB18/1000 -> 0 | CE18: =E18*CD18/1000 -> 0 | CG18: =E18*CF18/1000 -> 0 | CI18: =E18*CH18/1000 -> 0 | CK18: =E18*CJ18/1000 -> 0 | CM18: =E18*CL18/1000 -> 0 | CO18: =E18*CN18/1000 -> 0 | CQ18: =E18*CP18/1000 -> 0 | CS18: =E18*CR18/1000 -> 0 | CU18: =E18*CT18/1000 -> 0 | CW18: =E18*CV18/1000 -> 0 | CY18: =E18*CX18/1000 -> 0 | DA18: =E18*CZ18/1000 -> 0 | DB18: 1
A19: 32333200 | B19: տեսագրող սարքեր | C19: ԳՀ | D19: հատ | E19: 700000 | F19: =DB19*E19/1000 -> 700 | I19: =E19*H19/1000 -> 0 | K19: =E19*J19/1000 -> 0 | M19: =E19*L19/1000 -> 0 | O19: =E19*N19/1000 -> 0 | Q19: =E19*P19/1000 -> 0 | S19: =E19*R19/1000 -> 0 | U19: =E19*T19/1000 -> 0 | W19: =E19*V19/1000 -> 0 | Y19: =E19*X19/1000 -> 0 | AA19: 0 | AC19: =E19*AB19/1000 -> 0 | AE19: =E19*AD19/1000 -> 0 | AG19: =E19*AF19/1000 -> 0 | AI19: =E19*AH19/1000 -> 0 | AK19: =E19*AJ19/1000 -> 0 | AM19: =E19*AL19/1000 -> 0 | AO19: =E19*AN19/1000 -> 0 | AQ19: =E19*AP19/1000 -> 0 | AS19: =E19*AR19/1000 -> 0 | AU19: =E19*AT19/1000 -> 0 | AW19: =E19*AV19/1000 -> 0 | AY19: =E19*AX19/1000 -> 0 | BA19: =E19*AZ19/1000 -> 0 | BC19: =E19*BB19/1000 -> 0 | BE19: =E19*BD19/1000 -> 0 | BG19: =E19*BF19/1000 -> 0 | BK19: =E19*BJ19/1000 -> 0 | BM19: =E19*BL19/1000 -> 0 | BO19: =E19*BN19/1000 -> 0 | BQ19: =BS19+BU19+BW19+BY19+CA19+CC19+CE19+CG19+CI19+CK19+CM19+CO19+CQ19+CS19+CU19+CW19+CY19+DA19 -> 0 | BS19: =E19*BR19/1000 -> 0 | BU19: =E19*BT19/1000 -> 0 | BW19: =E19*BV19/1000 -> 0 | BY19: =E19*BX19/1000 -> 0 | CA19: =E19*BZ19/1000 -> 0 | CC19: =E19*CB19/1000 -> 0 | CE19: =E19*CD19/1000 -> 0 | CG19: =E19*CF19/1000 -> 0 | CI19: =E19*CH19/1000 -> 0 | CK19: =E19*CJ19/1000 -> 0 | CM19: =E19*CL19/1000 -> 0 | CO19: =E19*CN19/1000 -> 0 | CQ19: =E19*CP19/1000 -> 0 | CS19: =E19*CR19/1000 -> 0 | CU19: =E19*CT19/1000 -> 0 | CW19: =E19*CV19/1000 -> 0 | CY19: =E19*CX19/1000 -> 0 | DA19: =E19*CZ19/1000 -> 0 | DB19: 1
A20: ՄԱՍ II ԾԱՌԱՅՈՒԹՅՈՒՆՆԵՐ | F20: =SUM(F21:F49) -> 3578.6
A21: 50331160 | B21: Ñ»é³Ëáë³ÛÇÝ ó³Ýó»ñÇ å³Ñå³ÝÙ³Ý Í³é³ÛáõÃÛáõÝÝ»ñ | C21: ԲԸԱՀ | D21: ¹ñ³Ù | E21: 350000 | F21: 350 | G21: 350 | I21: 0 | K21: 0 | M21: 0 | O21: 0 | Q21: 0 | S21: 0 | U21: 0 | W21: 0 | Y21: 0 | AA21: 0 | AC21: 0 | AE21: 0 | AG21: 0 | AI21: 0 | AK21: 0 | AM21: 0 | AN21: 1 | AO21: 350 | AQ21: 0 | AS21: 0 | AU21: 0 | AW21: 0 | AY21: 0 | BA21: 0 | BC21: 0 | BE21: 0 | BG21: 0 | BI21: 0 | BK21: 0 | BM21: 0 | BO21: 0 | BQ21: 0 | BS21: 0 | BU21: 0 | BW21: 0 | BY21: 0 | CA21: 0 | CC21: 0 | CE21: 0 | CG21: 0 | CI21: 0 | CK21: 0 | CM21: 0 | CO21: 0 | CQ21: 0 | CS21: 0 | CU21: 0 | CW21: 0 | CY21: 0 | DA21: 0 | DB21: 1
A22: 55111100 | B22: ÑÛáõñ³ÝáóÝ»ñáõÙ µÝ³Ïí»Éáõ Í³é³ÛáõÃÛáõÝÝ»ñ | C22: äÀ | D22: ¹ñ³Ù | E22: 600500 | F22: 600.5 | G22: =I22+K22+M22+O22+Q22+S22+U22+W22+Y22+AC22+AE22+AG22+AI22+AK22+AM22+AO22+AQ22+AS22+AU22+AW22+AY22+BA22+BC22+BE22+BG22+BI22+BK22+BM22+BO22 -> 600.5 | I22: 0 | K22: 0 | M22: 0 | O22: 0 | Q22: 0 | S22: 0 | U22: 0 | W22: 0 | Y22: 0 | AA22: =K22*Z22/1000 -> 0 | AC22: 0 | AE22: 0 | AG22: 0 | AI22: 0 | AK22: 0 | AM22: 0 | AN22: 1 | AO22: 600.5 | AQ22: 0 | AS22: 0 | AU22: 0 | AW22: 0 | AY22: 0 | BA22: 0 | BC22: 0 | BE22: 0 | BG22: 0 | BI22: 0 | BK22: 0 | BM22: 0 | BO22: 0 | BQ22: 0 | BS22: 0 | BU22: 0 | BW22: 0 | BY22: 0 | CA22: 0 | CC22: 0 | CE22: 0 | CG22: 0 | CI22: 0 | CK22: 0 | CM22: 0 | CO22: 0 | CQ22: 0 | CS22: 0 | CU22: 0 | CW22: 0 | CY22: 0 | DA22: 0 | DB22: 1
A23: 70221100 | B23: áã µÝ³Ï»ÉÇ ³Ýß³ñÅ ·áõÛùÇ í³ñÓ³Ï³ÉáõÃÛ³Ý Ï³Ù ÉÇ½ÇÝ·Ç Í³é³ÛáõÃÛáõÝÝ»ñ | C23: ´À²Ð | D23: ¹ñ³Ù | E23: 370000 | F23: 370 | G23: =I23+K23+M23+O23+Q23+S23+U23+W23+Y23+AC23+AE23+AG23+AI23+AK23+AM23+AO23+AQ23+AS23+AU23+AW23+AY23+BA23+BC23+BE23+BG23+BI23+BK23+BM23+BO23 -> 370 | I23: 0 | K23: 0 | M23: 0 | O23: 0 | Q23: 0 | R23: 1 | S23: 370 | U23: 0 | W23: 0 | Y23: 0 | AA23: =K23*Z23/1000 -> 0 | AC23: 0 | AE23: 0 | AG23: 0 | AI23: 0 | AK23: 0 | AM23: 0 | AO23: 0 | AQ23: 0 | AS23: 0 | AU23: 0 | AW23: 0 | AY23: 0 | BA23: 0 | BC23: 0 | BE23: 0 | BG23: 0 | BI23: 0 | BK23: 0 | BM23: 0 | BO23: 0 | BQ23: 0 | BS23: 0 | BU23: 0 | BW23: 0 | BY23: 0 | CA23: 0 | CC23: 0 | CE23: 0 | CG23: 0 | CI23: 0 | CK23: 0 | CM23: 0 | CO23: 0 | CQ23: 0 | CS23: 0 | CU23: 0 | CW23: 0 | CY23: 0 | DA23: 0 | DB23: 1
A24: 79531100 | B24: ·ñ³íáñ Ã³ñ·Ù³ÝáõÃÛ³Ý Í³é³ÛáõÃÛáõÝÝ»ñ | C24: ՇՀ | D24: ¹ñ³Ù | E24: 128800 | F24: 128.8 | G24: =I24+K24+M24+O24+Q24+S24+U24+W24+Y24+AC24+AE24+AG24+AI24+AK24+AM24+AO24+AQ24+AS24+AU24+AW24+AY24+BA24+BC24+BE24+BG24+BI24+BK24+BM24+BO24+AA24 -> 128.8 | I24: 0 | K24: 0 | M24: 0 | O24: 0 | Q24: 0 | S24: 0 | U24: 0 | W24: 0 | Y24: 0 | Z24: 1 | AA24: =E24*Z24/1000 -> 128.8 | AC24: 0 | AE24: 0 | AG24: 0 | AI24: 0 | AK24: 0 | AM24: 0 | AO24: 0 | AQ24: 0 | AS24: 0 | AU24: 0 | AW24: 0 | AY24: 0 | BA24: 0 | BC24: 0 | BE24: 0 | BG24: 0 | BI24: 0 | BK24: 0 | BM24: 0 | BO24: 0 | BQ24: 0 | BS24: 0 | BU24: 0 | BW24: 0 | BY24: 0 | CA24: 0 | CC24: 0 | CE24: 0 | CG24: 0 | CI24: 0 | CK24: 0 | CM24: 0 | CO24: 0 | CQ24: 0 | CS24: 0 | CU24: 0 | CW24: 0 | CY24: 0 | DA24: 0 | DB24: 0
A25: 79541100 | B25: µ³Ý³íáñ Ã³ñ·Ù³ÝáõÃÛ³Ý Í³é³ÛáõÃÛáõÝÝ»ñ | C25: ՇՀ | D25: ¹ñ³Ù | E25: 363400 | F25: 363.4 | G25: =I25+K25+M25+O25+Q25+S25+U25+W25+Y25+AC25+AE25+AG25+AI25+AK25+AM25+AO25+AQ25+AS25+AU25+AW25+AY25+BA25+BC25+BE25+BG25+BI25+BK25+BM25+BO25+AA25 -> 363.4 | I25: 0 | K25: 0 | M25: 0 | O25: 0 | Q25: 0 | S25: 0 | U25: 0 | W25: 0 | Y25: 0 | Z25: 1 | AA25: =E25*Z25/1000 -> 363.4 | AC25: 0 | AE25: 0 | AG25: 0 | AI25: 0 | AK25: 0 | AM25: 0 | AO25: 0 | AQ25: 0 | AS25: 0 | AU25: 0 | AW25: 0 | AY25: 0 | BA25: 0 | BC25: 0 | BE25: 0 | BG25: 0 | BI25: 0 | BK25: 0 | BM25: 0 | BO25: 0 | BQ25: 0 | BS25: 0 | BU25: 0 | BW25: 0 | BY25: 0 | CA25: 0 | CC25: 0 | CE25: 0 | CG25: 0 | CI25: 0 | CK25: 0 | CM25: 0 | CO25: 0 | CQ25: 0 | CS25: 0 | CU25: 0 | CW25: 0 | CY25: 0 | DA25: 0 | DB25: 0
A26: 79631200 | B26: ³ßË³ï³ÏÇóÝ»ñÇ í»ñ³å³ïñ³ëïÙ³Ý Í³é³ÛáõÃÛáõÝÝ»ñ | C26: ´À²Ð | D26: ¹ñ³Ù | E26: 600000 | F26: =G26+BQ26 -> 600 | G26: =I26+K26+M26+O26+Q26+S26+U26+W26+Y26+AC26+AE26+AG26+AI26+AK26+AM26+AO26+AQ26+AS26+AU26+AW26+AY26+BA26+BC26+BE26+BG26+BI26+BK26+BM26+BO26 -> 600 | I26: =E26*H26/1000 -> 0 | K26: =E26*J26/1000 -> 0 | M26: =E26*L26/1000 -> 0 | O26: =E26*N26/1000 -> 0 | Q26: =E26*P26/1000 -> 0 | S26: =E26*R26/1000 -> 0 | U26: =E26*T26/1000 -> 0 | W26: =E26*V26/1000 -> 0 | Y26: =E26*X26/1000 -> 0 | AA26: =K26*Z26/1000 -> 0 | AC26: =E26*AB26/1000 -> 0 | AE26: =E26*AD26/1000 -> 0 | AG26: =E26*AF26/1000 -> 0 | AI26: =E26*AH26/1000 -> 0 | AK26: =E26*AJ26/1000 -> 0 | AM26: =E26*AL26/1000 -> 0 | AN26: 1 | AO26: =E26*AN26/1000 -> 600 | AQ26: =E26*AP26/1000 -> 0 | AS26: =E26*AR26/1000 -> 0 | AU26: =E26*AT26/1000 -> 0 | AW26: =E26*AV26/1000 -> 0 | AY26: =E26*AX26/1000 -> 0 | BA26: =E26*AZ26/1000 -> 0 | BC26: =E26*BB26/1000 -> 0 | BE26: =E26*BD26/1000 -> 0 | BG26: =E26*BF26/1000 -> 0 | BI26: =E26*BH26/1000 -> 0 | BK26: =E26*BJ26/1000 -> 0 | BM26: =E26*BL26/1000 -> 0 | BO26: =E26*BN26/1000 -> 0 | BQ26: =BS26+BU26+BW26+BY26+CA26+CC26+CE26+CG26+CI26+CK26+CM26+CO26+CQ26+CS26+CU26+CW26+CY26+DA26 -> 0 | BS26: =E26*BR26/1000 -> 0 | BU26: =E26*BT26/1000 -> 0 | BW26: =E26*BV26/1000 -> 0 | BY26: =E26*BX26/1000 -> 0 | CA26: =E26*BZ26/1000 -> 0 | CC26: =E26*CB26/1000 -> 0 | CE26: =E26*CD26/1000 -> 0 | CG26: =E26*CF26/1000 -> 0 | CI26: =E26*CH26/1000 -> 0 | CK26: =E26*CJ26/1000 -> 0 | CM26: =E26*CL26/1000 -> 0 | CO26: =E26*CN26/1000 -> 0 | CQ26: =E26*CP26/1000 -> 0 | CS26: =E26*CR26/1000 -> 0 | CU26: =E26*CT26/1000 -> 0 | CW26: =E26*CV26/1000 -> 0 | CY26: =E26*CX26/1000 -> 0 | DA26: =E26*CZ26/1000 -> 0 | DB26: =H26+J26+L26+N26+P26+R26+T26+V26+X26+AB26+AD26+AF26+AH26+AJ26+AL26+AN26+AP26+AR26+AT26+AV26+AX26+AZ26+BB26+BD26+BF26+BH26+BJ26+BL26+BN26+BR26+BT26+BV26+BX26+BZ26+CB26+CD26+CF26+CH26+CJ26+CL26+CN26+CP26+CR26+CT26+CV26+CX26+CZ26 -> 1
A27: 79821180 | B27: ïå³·ñ³Ï³Ý ¨ µ³ßËÙ³Ý Í³é³ÛáõÃÛáõÝÝ»ñ | C27: ÞÐ | D27: ¹ñ³Ù | E27: 671900 | F27: 671.9 | G27: =I27+K27+M27+O27+Q27+S27+U27+W27+Y27+AC27+AE27+AG27+AI27+AK27+AM27+AO27+AQ27+AS27+AU27+AW27+AY27+BA27+BC27+BE27+BG27+BI27+BK27+BM27+BO27 -> 671.9 | I27: 0 | K27: 0 | M27: 0 | O27: 0 | Q27: 0 | S27: 0 | U27: 0 | W27: 0 | Y27: 0 | AA27: =K27*Z27/1000 -> 0 | AC27: 0 | AE27: 0 | AF27: 1 | AG27: 671.9 | AI27: 0 | AK27: 0 | AM27: 0 | AO27: 0 | AQ27: 0 | AS27: 0 | AU27: 0 | AW27: 0 | AY27: 0 | BA27: 0 | BC27: 0 | BE27: 0 | BG27: 0 | BI27: 0 | BK27: 0 | BM27: 0 | BO27: 0 | BQ27: 0 | BS27: 0 | BU27: 0 | BW27: 0 | BY27: 0 | CA27: 0 | CC27: 0 | CE27: 0 | CG27: 0 | CI27: 0 | CK27: 0 | CM27: 0 | CO27: 0 | CQ27: 0 | CS27: 0 | CU27: 0 | CW27: 0 | CY27: 0 | DA27: 0 | DB27: 1
A28: 79951100 | B28: ÙÇçáó³éáõÙÝ»ñÇ Ñ»ï Ï³åí³Í Í³é³ÛáõÃÛáõÝÝ»ñ | C28: ÞÐ | D28: ¹ñ³Ù | E28: 494000 | F28: 494 | G28: =I28+K28+M28+O28+Q28+S28+U28+W28+Y28+AC28+AE28+AG28+AI28+AK28+AM28+AO28+AQ28+AS28+AU28+AW28+AY28+BA28+BC28+BE28+BG28+BI28+BK28+BM28+BO28 -> 494 | I28: 0 | K28: 0 | M28: 0 | O28: 0 | Q28: 0 | S28: 0 | U28: 0 | W28: 0 | Y28: 0 | AA28: =K28*Z28/1000 -> 0 | AC28: 0 | AE28: 0 | AG28: 0 | AI28: 0 | AK28: 0 | AM28: 0 | AN28: 1 | AO28: 494 | AQ28: 0 | AS28: 0 | AU28: 0 | AW28: 0 | AY28: 0 | BA28: 0 | BC28: 0 | BE28: 0 | BG28: 0 | BI28: 0 | BK28: 0 | BM28: 0 | BO28: 0 | BQ28: 0 | BS28: 0 | BU28: 0 | BW28: 0 | BY28: 0 | CA28: 0 | CC28: 0 | CE28: 0 | CG28: 0 | CI28: 0 | CK28: 0 | CM28: 0 | CO28: 0 | CQ28: 0 | CS28: 0 | CU28: 0 | CW28: 0 | CY28: 0 | DA28: 0 | DB28: 1

Sheet Sheet2
A1: 03000000 | B1: ·ÛáõÕ³ïÝï»ë³Ï³Ý, ý»ñÙ»ñ³ÛÇÝ ïÝï»ëáõÃÛ³Ý, ÓÏÝáñëáõÃÛ³Ý, ³Ýï³é³ÛÇÝ ïÝï»ëáõÃÛ³Ý ¨ ¹ñ³Ýó Ñ»ï Ï³åí³Í ³ñï³¹ñ³Ýù
A2: 03100000 | B2: ·ÛáõÕ³ïÝï»ë³Ï³Ý ¨ ³Û·»·áñÍ³Ï³Ý ³ñï³¹ñ³Ýù
A3: 03110000 | B3: ·ÛáõÕ³ïÝï»ë³Ï³Ý ÏáõÉïáõñ³Ý»ñ, ³ñ¹ÛáõÝ³µ»ñ³Ï³Ý ³Û·»·áñÍáõÃÛ³Ý ³ñï³¹ñ³Ýù ¨ ³Û·»·áñÍáõÃÛáõÝ
A4: 03111000
A5: 03111100 | B5: ëáÛ³ÛÇ ë»ñÙ»ñ
A6: 03111110 | B6: ·»ïÝ³Ýáõß
A7: 03111120 | B7: ³ñ¨³Í³ÕÏÇ ë»ñÙ»ñ
A8: 03111130 | B8: µ³Ùµ³ÏÇ ë»ñÙ»ñ
A9: 03111140 | B9: ùáõÝçáõÃÇ ë»ñÙ»ñ
A10: 03111150 | B10: Ù³Ý³Ý»ËÇ ë»ñÙ»ñ
A11: 03111160 | B11: µ³Ýç³ñ»Õ»ÝÇ ë»ñÙ»ñ
A12: 03111170 | B12: Ùñ·»ñÇ ë»ñÙ»ñ
A13: 03111180 | B13: Í³ÕÇÏÝ»ñÇ ë»ñÙ»ñ
A14: 03111190 | B14: ãÙß³Ïí³Í ÍË³Ëáï
A15: 03111200 | B15: ß³ù³ñÇ ×³ÏÝ¹»Õ
A16: 03111210 | B16: ß³ù³ñ»Õ»·
A17: 03111220 | B17: ÍÕáï ¨ Ñ³ïÇÏ³Ë³ñ (ýáõñ³Å)
A18: 03111230 | B18: ÍÕáï
A19: 03111240 | B19: Ñ³ïÇÏ³Ë³ñ (ýáõñ³Å)
A20: 03111250 | B20: µ³Ùµ³Ï
A21: 03111260 | B21: çáõï
A22: 03111270 | B22: ù³Ã³Ý
A23: 03111280 | B23: µÝ³Ï³Ý Ï³áõãáõÏ
A24: 03111290 | B24: µÝ³Ï³Ý É³ï»ùë
A25: 03111300 | B25: É³ï»ùëÇó å³ïñ³ëïí³Í ³ñï³¹ñ³Ýù
A26: 03111310 | B26: ûÍ³Ý»ÉÇùÇ ³ñï³¹ñáõÃÛ³Ý Ù»ç û·ï³·áñÍíáÕ µáõÛë»ñ
A27: 03111320 | B27: ¹»Õ»ñÇ ³ñï³¹ñáõÃÛ³Ý Ù»ç û·ï³·áñÍíáÕ µáõÛë»ñ
A28: 03111330 | B28: ÙÇç³ïÝ»ñÇ ¹»Ù å³Ûù³ñáõÙ û·ï³·áñÍíáÕ µáõÛë»ñ
A29: 03111340 | B29: Ñ³Ï³ëÝÏ³ÛÇÝ Ï³Ù ³ÛÉ Ýå³ï³ÏÝ»ñáí û·ï³·áñÍíáÕ µáõÛë»ñ
A30: 03111350 | B30: áñáß³ÏÇ áÉáñïÝ»ñáõÙ û·ï³·áñÍíáÕ µáõÛë»ñÇ ë»ñÙ»ñ
A31: 03120000 | B31: ³Û·»·áñÍ³Ï³Ý ¨ ç»ñÙáó³ÛÇÝ ³ñï³¹ñ³Ýù
A32: 03121000
A33: 03121100 | B33: Ï»Ý¹³ÝÇ µáõÛë»ñ
A34: 03121110 | B34: ëáËáõÏÝ»ñ
A35: 03121120 | B35: ³ñÙ³ïÝ»ñ
A36: 03121130 | B36: ³ñÙ³ï³Ï³ÉÝ»ñ
A37: 03121140 | B37: ÁÝÓÛáõÕÝ»ñ
A38: 03121200 | B38: ù³Õ³Í Í³ÕÇÏÝ»ñ
A39: 03121210 | B39: Í³ÕÏ³ÛÇÝ ÏáÙåá½ÇóÇ³Ý»ñ
A40: 03130000 | B40: ÁÙå»ÉÇùÝ»ñÇ ¨ Ñ³Ù»ÙáõÝùÝ»ñÇ å³ïñ³ëïÙ³Ý Ù»ç û·ï³·áñÍíáÕ µáõÛë»ñ
A41: 03131000
A42: 03131100 | B42: ëáõñ×Ç Ñ³ïÇÏÝ»ñ
A43: 03131200 | B43: Ã»ÛÇ Ã÷»ñ
A44: 03131300 | B44: Ù³ï»
A45: 03131400 | B45: Ï³Ï³áÛÇ Ñ³ïÇÏÝ»ñ
A46: 03131500 | B46: ãÙß³Ïí³Í Ñ³Ù»ÙáõÝùÝ»ñ
A47: 03140000 | B47: Ï»Ý¹³Ý³Ï³Ý Í³·Ù³Ý ¨ Ñ³ñ³ÏÇó ³ñï³¹ñ³Ýù
A48: 03141000
A49: 03141100 | B49: óÉÇ ë»ñÙÝ³Ñ»ÕáõÏ
A50: 03142000
A51: 03142100 | B51: Ù»Õñ, µÝ³Ï³Ý
A52: 03142200 | B52: ËËáõÝçÝ»ñ
A53: 03142400 | B53: Ù»Õñ³ÙáÙ
A54: 03142500 | B54: Óáõ
A55: 03142510 | B55: Óáõ, 01 Ï³ñ·
A56: 03142520 | B56: Óáõ, 02 Ï³ñ·
A57: 03142530 | B57: ÑáÕ³·áñÍ³Ï³Ý-³Ý³ëÝ³å³Ñ³Ï³Ý Ë³éÁ ïÝï»ëáõÃÛ³Ý ³ñï³¹ñ³Ýù
A58: 03142540 | B58: ·ÛáõÕ³ïÝï»ë³Ï³Ý ÙÃ»ñùÝ»ñ
A59: 03200000 | B59: Ñ³ó³Ñ³ïÇÏ, Ï³ñïáýÇÉ, µ³Ýç³ñ»Õ»Ý, Ùñ·»ñ ¨ ÁÝ¹»Õ»Ý
A60: 03210000 | B60: Ñ³ó³Ñ³ïÇÏ ¨ Ï³ñïáýÇÉ
A61: 03211000
A62: 03211100 | B62: óáñ»Ý
A63: 03211110 | B63: åÇÝ¹ óáñ»Ý
A64: 03211120 | B64: ÷³÷áõÏ óáñ»Ý
A65: 03211200 | B65: »·Çåï³óáñ»Ý
A66: 03211300 | B66: µñÇÝÓ
A67: 03211400 | B67: ·³ñÇ
A68: 03211500 | B68: ï³ñ»Ï³Ý
A69: 03211600 | B69: í³ñë³Ï
A70: 03211700 | B70: ³ÍÇÏ
A71: 03211900 | B71: Ñ³ó³Ñ³ïÇÏ³ÛÇÝ ³ñï³¹ñ³Ýù
A72: 03212000
A73: 03212200 | B73: ãáñ³óñ³Í áÉáé
A74: 03212210 | B74: Ñ³ïÇÏ³ÁÝ¹³íáñ µáõÛë»ñ
A75: 03220000 | B75: µ³Ýç³ñ»Õ»Ý, Ùñ·»ñ ¨ ÁÝ¹»Õ»Ý
A76: 03221000
A77: 03221100 | B77: µ³½áõÏ
A78: 03221110 | B78: ·³½³ñ
A79: 03221111 | B79: ëáË
A80: 03221112 | B80: ß³Õ·³Ù
A81: 03221113 | B81: ÉáµÇ
A82: 03221114 | B82: µ³ÏÉ³
A83: 03221115 | B83: Ï³Ý³ã ÉáµÇ
A84: 03221116 | B84: å³ïÇ×³íáñ ÉáµÇ
A85: 03221117 | B85: áÉáé
A86: 03221118 | B86: áÉáé ó³ÝùÇ Ñ³Ù³ñ
A87: 03221119
A88: 03221120 | B88: µÇµ³ñ
A89: 03221121 | B89: åáÙÇ¹áñ
A90: 03221122 | B90: ¹¹ÙÇÏÝ»ñ
A91: 03221123 | B91: ëáõÝÏ
A92: 03221124 | B92: í³ñáõÝ·
A93: 03221125
A94: 03221126 | B94: Ñ³½³ñ
A95: 03221127 | B95: Ñ³½³ñÇ ï»ñ¨Ý»ñ
A96: 03221128 | B96: ³ñïÇ×áõÏÝ»ñ
A97: 03221129 | B97: ëå³Ý³Ë
A98: 03221400
A99: 03221410 | B99: Ï³Õ³Ùµ Ù³ùñ³Í
A100: 03221420 | B100: Í³ÕÏ³Ï³Õ³Ùµ
A101: 03221430 | B101: µñáÏáÉÇ
A102: 03221440 | B102: µñÛáõë»ÉÛ³Ý Ï³Õ³Ùµ
A103: 03221450 | B103: Ï³Õ³Ùµ, ãÙ³ùñ³Í
A104: 03222000
A105: 03222100 | B105: µ³Ý³Ý
A106: 03222110 | B106: ³Ý³Ý³ë
A107: 03222111 | B107: Ù³Ý·á
A108: 03222112 | B108: ³ñÙ³í
A109: 03222113 | B109: ã³ÙÇã
A110: 03222114 | B110: Ãáõ½
A111: 03222115 | B111: ³íáÏ³¹á
A112: 03222116 | B112: ÏÇíÇ
A113: 03222117 | B113: ÏáÏáë
A114: 03222118 | B114: ÏÇïñáÝ
A115: 03222119 | B115: Ý³ñÇÝç
A116: 03222120 | B116: ÃáõñÇÝç
A117: 03222121 | B117: Ù³Ý¹³ñÇÝ
A118: 03222122 | B118: Ï³Ý³ã ÏÇïñáÝ
A119: 03222123 | B119: Ñ³Õ³ñç
A120: 03222124 | B120: ÷ß³Ñ³Õ³ñç
A121: 03222125 | B121: »É³Ï
A122: 03222126 | B122: ³½Ýí³ÙáñÇ
A123: 03222127 | B123: Éáé³ÙÇñ·
A124: 03222128 | B124: ËÝÓáñ
A125: 03222129 | B125: ï³ÝÓ
A126: 03222130 | B126: ë»ñÏ¨ÇÉ
A127: 03222131 | B127: ÍÇñ³Ý
A128: 03222132 | B128: ¹»ÕÓ
A129: 03222133 | B129: µ³É
A130: 03222134 | B130: ë³Éáñ
A131: 03222135 | B131: Ë³ÕáÕ
A132: 03222136 | B132: áõï»Éáõ Ñ³Ù³ñ Ý³Ë³ï»ëí³Í Ë³ÕáÕ
A133: 03222137 | B133: ·ÇÝáõ å³ïñ³ëïÙ³Ý Ñ³Ù³ñ Ý³Ë³ï»ëí³Í Ë³ÕáÕ
A134: 03222138 | B134: ½»ÛÃáõÝ
A135: 03222139 | B135: ÓÙ»ñáõÏ
A136: 03300000 | B136: ý»ñÙ³ÛÇÝ ïÝï»ëáõÃÛ³Ý, áñëáñ¹áõÃÛ³Ý ¨ ÓÏÝáñëáõÃÛ³Ý ³ñï³¹ñ³Ýù
A137: 03310000 | B137: ÓÏÝ»Õ»Ý, Ë»ó·»ïÝ³Ï»ñå»ñ ¨ Íáí³ÙÃ»ñù
A138: 03311000
A139: 03311100 | B139: ï³÷³Ï³ÓáõÏ
A140: 03311110 | B140: ëáÉ»³
A141: 03311111 | B141: Ï³Ùµ³É³
A142: 03311112 | B142: ÓáõÏ
A143: 03311113 | B143: ÓáÕ³ÓáõÏ
A144: 03311114 | B144: åáÉ³ù
A145: 03311115 | B145: Ë»Ï
A146: 03311116 | B146: Çß³ÓáõÏ
A147: 03311117 | B147: Íáí³ï³é»Ë
A148: 03311118 | B148: ÃÛáõÝÝáë
A149: 03311119 | B149: ³ñù³Û³ÓáõÏ
A150: 03311120 | B150: ëåÇï³Ï³ÓáõÏ
A151: 03311121 | B151: ë³ÕÙáÝ
A152: 03311122 | B152: áëïñ»
A153: 03311123 | B153: Ë»ó»ÙáñÃÝ»ñ
A154: 03311124 | B154: çñ³ÛÇÝ ³ÝáÕÝ³ß³ñ³íáñÝ»ñ
A155: 03311125 | B155: Ïáñ³ÉÝ»ñ ¨ ÝÙ³Ý³ïÇå ³åñ³ÝùÝ»ñ
A156: 03311126 | B156: µÝ³Ï³Ý ëåáõÝ·
A157: 03311127 | B157: Íáí³ÛÇÝ Ëáï»ñ
A158: 03311128 | B158: çñÇÙáõé
A159: 03320000 | B159: »Õç»ñ³íáñ Ï»Ý¹³ÝÇÝ»ñ, ÁÝï³ÝÇ Ï»Ý¹³ÝÇÝ»ñ ¨ Ù³Ýñ »Õç»ñ³íáñ Ï»Ý¹³ÝÇÝ»ñ
A160: 03321000
A161: 03321100 | B161: Ëáßáñ »Õç»ñ³íáñ Ï»Ý¹³ÝÇÝ»ñ
A162: 03321200 | B162: ÑáñÃ
A163: 03321300 | B163: áãË³ñÝ»ñ
A164: 03321400 | B164: ³ÛÍ»ñ
A165: 03321500 | B165: ÓÇ»ñ
A166: 03321600 | B166: Ëá½»ñ
A167: 03321700 | B167: Ï»Ý¹³ÝÇ ÃéãáõÝÝ»ñ
A168: 03321800 | B168: ×³·³ñÝ»ñ
A169: 03321900 | B169: Ý³å³ëï³ÏÝ»ñ
A170: 03322000
A171: 03322100 | B171: ßÝ»ñ
A172: 03330000 | B172: ý»ñÙ»ñ³ÛÇÝ Ï»Ý¹³ÝÇÝ»ñÇ ³ñï³¹ñ³Ýù
A173: 03331000
A174: 03331100 | B174: áãË³ñÇ Ï³Ã
A175: 03331200 | B175: ³ÛÍÇ Ï³Ã
A176: 03331300 | B176: µÝ³Ï³Ý ÙáñÃÇ
A177: 03331400 | B177: Ï»Ý¹³ÝÇÝ»ñÇ Ù³½»ñ
A178: 03331500 | B178: ÏáíÇ Ã³ñÙ Ï³Ã
A179: 03340000 | B179: Ï»Ý¹³ÝÇÝ»ñÇ ³Ï³ÝçÝ»ñÇ åÇï³ÏÝ»ñ
A180: 03341000
A181: 03341100 | B181: ï³í³ñÇ ³Ï³ÝçÝ»ñÇ åÇï³ÏÝ»ñ
A182: 03400000 | B182: ³Ýï³é³ÛÇÝ ïÝï»ëáõÃÛ³Ý ¨ ÷³Ûï³ÙÃ»ñÙ³Ý ³ñï³¹ñ³Ýù
A183: 03410000 | B183: ÷³Ûï
A184: 03411000
A185: 03411100 | B185: ÷ß³ï»ñ¨ Í³é»ñÇó ëï³óí³Í ÷³Ûï
A186: 03411110 | B186: ³ñ¨³¹³ñÓ³ÛÇÝ Í³é»ñÇó ëï³óí³Í ÷³Ûï
A187: 03411111 | B187: í³é»ÉÇùÇ Ñ³Ù³ñ Ý³Ë³ï»ëí³Í ÷³Ûï
A188: 03411112 | B188: ãÙß³Ïí³Í ÷³Ûï
A189: 03411113 | B189: ÷³÷áõÏ ÷³Ûï
A190: 03411114 | B190: ÷³Ûï³ÝÛáõÃÇ Ã³÷áÝ
A191: 03411115 | B191: ÷³ÛïÇ Ã»÷
A192: 03411116 | B192: ÷³ÛïÇ ÙÝ³óáñ¹Ý»ñ
A193: 03411117 | B193: Ï³ñÍñ ÷³Ûï
A194: 03411118 | B194: ·»ñ³ÝÝ»ñ
A195: 03411119 | B195: ÷³Ûï³ÝÛáõÃ
A196: 03411120 | B196: ÷³Ûï³ÝÛáõÃÇó å³ïñ³ëïí³Í ³ñï³¹ñ³Ýù
A197: 03411121 | B197: Ñ³Ýù³ñ¹ÛáõÝ³µ»ñáõÃÛ³Ý Ù»ç û·ï³·áñÍíáÕ ÷³Ûï³ÝÛáõÃ
A198: 03420000 | B198: Ë»Å
A199: 03421000
A200: 03421100 | B200: µ³É½³Ù
... 11656 more rows

Sheet Sheet3
A1: ´À | B1: 4211 | C1: ¸ñ³Ù | D1: 15612160 | E1: 1-ÇÝ ï»ë³ÏÇ óáñ»ÝÇ ³ÉÛáõñ
A2: ÞÐ | B2: 4212 | C2: Ñ³ï | D2: 15612170 | E2: 2-ñ¹ ï»ë³ÏÇ óáñ»ÝÇ ³ÉÛáõñ
A3: ´ÀÐ | B3: 4213 | C3: ÉÇïñ | D3: 15612180 | E3: µ³ñÓñ ï»ë³ÏÇ óáñ»ÝÇ ³ÉÛáõñ
A4: ´À²Ð | B4: 4214 | C4: ÏÇÉá·ñ³Ù | D4: 15131630 | E4: ï³í³ñÇ ÙëÇ å³Ñ³Íá
A5: êÀ | B5: 4215 | C5: ïáÝÝ³ | D5: 15235100 | E5: ÓÏ³Ý å³Ñ³Íá, ÛáõÕÇ Ù»ç ï³å³Ï³Í
A6: Øº | B6: 4216 | C6: Ù3 | D6: 15235200 | E6: ÓÏ³Ý å³Ñ³Íá, ïáÙ³ïÇ ëááõëáí
A7: äÀ | B7: 4217 | C7: Ù2 | D7: 15113100 | E7: Ëá½Ç ÙÇë, ï»Õ³Ï³Ý, áëÏñáï 1-ÇÝ Ï³ñ·Ç /ã³É³Õ³ç, Ù³ï/
A8: ·ãÍ | B8: 4221 | C8: ïáõ÷ | D8: 15113200 | E8: Ëá½Ç ÙÇë, ï»Õ³Ï³Ý, ÷³÷áõÏ
B9: 4222 | C9: ëñí³Ï | D9: 15113300 | E9: Ëá½Ç ÙÇë, Ý»ñÙáõÍí³Í áëÏñáï, 1-ÇÝ Ï³ñ·Ç
B10: 4231 | C10: ¹»Õ³Ñ³ï | D10: 15113400 | E10: Ëá½Ç ÙÇë, Ý»ñÙáõÍí³Í ÷³÷áõÏ
B11: 4232 | C11: ¹á½³ | D11: 15112150 | E11: Ñ³íÇ Ùë»ÕÇù, å³Õ»óñ³Í, ï»Õ³Ï³Ý, ³ÙµáÕç³Ï³Ý
B12: 4233 | C12: ßÇß | D12: 15112160 | E12: Ñ³íÇ Ùë»ÕÇù, ë³é»óí³Í, ï»Õ³Ï³Ý, ³ÙµáÕç³Ï³Ý
B13: 4234 | C13: Ï³å | D13: 15112170 | E13: Ñ³íÇ Ùë»ÕÇù, ë³é»óí³Í, Ý»ñÙáõÍí³Í, ³ÙµáÕç³Ï³Ý
B14: 4235 | C14: Ñ³í³ù³Íáõ | D14: 15111110 | E14: ï³í³ñÇ ÙÇë, ï»Õ³Ï³Ý áëÏñáï
B15: 4236 | C15: å³ëï»Õ | D15: 15111120 | E15: ï³í³ñÇ ÙÇë, ï»Õ³Ï³Ý ÷³÷áõÏ
B16: 4237 | C16: Éá½³Ý | D16: 15111130 | E16: ï³í³ñÇ ÙÇë, Ý»ñÙáõÍí³Í ÷³÷áõÏ
B17: 4239 | C17: ·ñ³Ù | D17: 15115200 | E17: áãË³ñÇ ÙÇë, ï»Õ³Ï³Ý áëÏñáï
B18: 4241 | C18: Ù»ïñ | D18: 15119610 | E18: ÓáõÏ, ï»Õ³Ï³Ý ÇßË³Ý
B19: 4251 | C19: ÙÉ | D19: 15221000 | E19: ÓáõÏ, ë³é»óí³Í, Ý»ñÙáõÍí³Í /Ë»Ï/
B20: 4252 | C20: ÙÙ | D20: 15131121 | E20: »ñßÇÏ, »÷³Í
B21: 4261 | C21: Ïíï/Å | D21: 15131122 | E21: »ñßÇÏ, ÏÇë³³åËï³Í
B22: 4262 | D22: 15131123 | E22: »ñßÇÏ, ÑáõÙ³åËï³Í
B23: 4263 | D23: 15313000 | E23: Ï³ñïáýÇÉ
B24: 4264 | D24: 15541100 | E24: å³ÝÇñ, ÉáéÇ
B25: 4265 | D25: 15541200 | E25: å³ÝÇñ, ã³Ý³Ë
B26: 4266 | D26: 15542100 | E26: Ï³ÃÝ³ßáé ¹³ë³Ï³Ý
B27: 4267 | D27: 15542110 | E27: Ï³ÃÝ³ßáé, ³ÝÛáõÕ
B28: 4269 | D28: 15831000 | E28: ß³ù³ñ³í³½ ëåÇï³Ï
B29: 4651 | D29: 15511600 | E29: Ëï³óñ³Í Ï³Ã ß³ù³ñáí
B30: 4861 | D30: 15811110 | E30: Ñ³ó, Ññ³½¹³Ý
B31: 5111 | D31: 15811120 | E31: Ñ³ó, Ù³ïÝ³ù³ß
B32: 5112 | D32: 15616000 | E32: ÑÝ¹Ï³Ó³í³ñ
B33: 5113 | D33: 03142510 | E33: Óáõ, 01 Ï³ñ·
B34: 5121 | D34: 03142520 | E34: Óáõ, 02 Ï³ñ·
B35: 5122 | D35: 03221450 | E35: Ï³Õ³Ùµ, ãÙ³ùñ³Í
B36: 5129 | D36: 15411150 | E36: ³ñ¨³Í³ÕÏÇ Ó»Ã, ãé³ýÇÝ³óí³Í, (ã½ïí³Í)
B37: 5131 | D37: 15421100 | E37: ³ñ¨³Í³ÕÏÇ Ó»Ã, é³ýÇÝ³óí³Í, (½ï³Í)
B38: 5132 | D38: 15421200 | E38: »·Çåï³óáñ»ÝÇ Ó»Ã, é³ýÇÝ³óí³Í (½ï³Í)
B39: 5133 | D39: 15431100 | E39: Ù³ñ·³ñÇÝ, Ý»ñÙáõÍí³Í
B40: 5134 | D40: 15530000 | E40: Ï³ñ³·, ë»ñáõóù³ÛÇÝ
B41: 5221 | D41: 15431200 | E41: ë÷ñ»¹, µáõë³ë»ñáõóù³ÛÇÝ
B42: 5231 | D42: 15321000 | E42: Ùñ·³ÑÛáõÃ, å³ïñ³ëïÇ û·ï³·áñÍÙ³Ý µÝ³Ï³Ý ÑÛáõÃ
B43: 5241 | D43: 15871230 | E43: ïáÙ³ïÇ Ï»ïãáõå ï»Õ³Ï³Ý ³ñï³¹ñáõÃÛ³Ý
B44: 5311 | D44: 15333100 | E44: ïáÙ³ïÇ Ù³ÍáõÏ
B45: 5411 | D45: 15851100 | E45: Ù³Ï³ñáÝ
B46: 5421 | D46: 15617000 | E46: óáñ»Ý³Ó³í³ñ
B47: 5431 | D47: 15618000 | E47: µÉÕáõñ
B48: 5441 | D48: 15619000 | E48: Ñ³×³ñ³Ó³í³ñ
D49: 03211300 | E49: µñÇÝÓ
D50: 03221410 | E50: Ï³Õ³Ùµ, Ù³ùñ³Í
D51: 15331161 | E51: ëáË, ·ÉáõË
D52: 15331131 | E52: ÉáµÇ, Ï³Ý³ã
D53: 15331151 | E53: ÉáµÇ, Ñ³ïÇÏ³íáñ
D54: 15331152 | E54: ëÇë»é, ³ÙµáÕç³Ï³Ý
D55: 15331153 | E55: áëå, ³ÙµáÕç³Ï³Ý
D56: 15331154 | E56: áÉáé, ³ÙµáÕç³Ï³Ý
D57: 15872400 | E57: ³Õ, Ï»ñ³ÏñÇ, Ù³Ýñ
D58: 15331163 | E58: ×³ÏÝ¹»Õ, ³ñÙ³ï³åïáõÕ
D59: 15842110 | E59: ÏáÝý»ï, ßáÏáÉ³¹³å³ï
D60: 15842310 | E60: ÏáÝý»ï, Ï³ñ³Ù»É
D61: 15331164 | E61: ·³½³ñ
D62: 15131700 | E62: ×³ñå, ï»Õ³Ï³Ý, Ëá½Ç
D63: 15863200 | E63: Ã»Û, ë¨
D64: 15332230 | E64: Ùáõñ³µ³, ï»Õ³Ï³Ý
D65: 15332297 | E65: ç»Ù, ï»Õ³Ï³Ý
D66: 15991310 | E66: ÍË³Ëáï, ýÇÉïñáí
D67: 15991320 | E67: ÍË³Ëáï, ³é³Ýó ýÇÉïñÇ
D68: 15512000 | E68: ÃÃí³ë»ñ, ï»Õ³Ï³Ý
D69: 03142100 | E69: Ù»Õñ, µÝ³Ï³Ý
D70: 15331165 | E70: ëËïáñ, ·ÉáõË
D71: 15981110 | E71: çáõñ, ³å³ÏÛ³ ßßáí 0,5É
D72: 15981120 | E72: çáõñ, åáÉÇ¿ÃÇÉ»Ý³ÛÇÝ ï³ñ³Ûáí 0,5É
D73: 15981210 | E73: Ñ³Ýù³ÛÇÝ çáõñ, ³å³ÏÛ³ ßßáí 0,5É
D74: 15981220 | E74: Ñ³Ýù³ÛÇÝ çáõñ, åáÉÇ¿ÃÇÉ»Ý³ÛÇÝ ï³ñ³Ûáí 0,5É
D75: 15332140 | E75: ËÝÓáñ, ÙÇçÇÝ ã³÷Ç
D76: 15332191 | E76: Ý³ñÇÝç
D77: 15332192 | E77: Ù³Ý¹³ñÇÝ
D78: 15332160 | E78: µ³Ý³Ý
D79: 15898000 | E79: ËÙáñÇã
D80: 15331171 | E80: ï³ù¹»Õ, ù³Õóñ
D81: 15331172 | E81: ï³ù¹»Õ, ÏÍáõ
D82: 15511100 | E82: Ï³Ã, å³ëï»ñ³óí³Í
D83: 15551600 | E83: Ù³ÍáõÝ, ÏáíÇ Ï³ÃÇó
D84: 15871110 | E84: ù³ó³Ë, ËÝÓáñÇ
D85: 15872310 | E85: ¹³÷Ý»ï»ñ¨, ãáñ³óñ³Í
D86: 15331139 | E86: ÉáÉÇÏ
D87: 15331166 | E87: í³ñáõÝ·
D88: 15331490 | E88: Ù³ñÇÝ³óí³Í í³ñáõÝ·
D89: 15861100 | E89: ëáõñ×, ³Õ³ó³Í
D90: 15861300 | E90: ëáõñ×, ÉáõÍíáÕ
D91: 15331167 | E91: Ï³Ý³ãÇ, Ë³éÁ
D92: 15331162 | E92: ëáË, Ï³Ý³ã
D93: 15331168 | E93: ëÙµáõÏ
D94: 15931700 | E94: ·ÇÝÇ, Ï³ñÙÇñ
D95: 15931800 | E95: ·ÇÝÇ, ëåÇï³Ï
D96: 15894610 | E96: Ù³ÛáÝ»½
D97: 15871251 | E97: Ù³Ý³Ý»ËÇ ÷áßÇ
D98: 15623000 | E98: ûëÉ³
D99: 15911310 | E99: ÏáÝÛ³Ï, 5 ï³ñÇ ÑÝ»óÙ³Ùµ
D100: 15911320 | E100: ÏáÝÛ³Ï, 10 ï³ñÇ ÑÝ»óÙ³Ùµ
D101: 15911330 | E101: ÏáÝÛ³Ï, 15 ï³ñÇ ÑÝ»óÙ³Ùµ
D102: 15911340 | E102: ÏáÝÛ³Ï, 20 ï³ñÇ ÑÝ»óÙ³Ùµ
D103: 30197631 | E103: ÃáõÕÃ, A4 ýáñÙ³ïÇ1 /21x29.7/
D104: 30197231 | E104: ÃÕÃ³å³Ý³Ï, åáÉÇÙ»ñ³ÛÇÝ Ã³Õ³ÝÃ, ý³ÛÉ
D105: 30197232 | E105: ÃÕÃ³å³Ý³Ï, ³ñ³·³Ï³ñ, ÃÕÃÛ³
D106: 30197233 | E106: ÃÕÃ³å³Ý³Ï, ÃÕÃ», Ã»Éáí
D107: 30197234 | E107: ÃÕÃ³å³Ý³Ï, Ïáßï Ï³½Ùáí
D108: 39121300 | E108: ë»Õ³Ý, ·ñ³ë»Õ³Ý, ³ßË³ï³Ýù³ÛÇÝ, ·ñ³ë»ÝÛ³Ï³ÛÇÝ
D109: 30199231 | E109: Ý³Ù³ÏÇ Íñ³ñ, A5 Ó¨³ã³÷Ç
D110: 30199232 | E110: Íñ³ñ, Ù»Í, A4 ýáñÙ³ïÇ Ñ³Ù³ñ
D111: 30234300 | E111: ¹³ï³ñÏ ëÏ³í³é³Ï, ³é³Ýó ïáõ÷Ç, CD
D112: 30234400 | E112: ¹³ï³ñÏ ëÏ³í³é³Ï, ³é³Ýó ïáõ÷Ç, DVD
D113: 30192121 | E113: ·ñÇã ·Ý¹ÇÏ³íáñ
D114: 30192128 | E114: ·ñÇã ·»É³ÛÇÝ
D115: 30199510 | E115: ëïí³ñ³ÃáõÕÃ, Ã»ñÃáí
D116: 30199420 | E116: ÃáõÕÃ, ÝßáõÙÝ»ñÇ Ñ³Ù³ñ, ëáëÝÓí³Íùáí
D117: 30199430 | E117: ÃáõÕÃ ÝßáõÙÝ»ñÇ, ïñó³ÏÝ»ñáí
D118: 39263200 | E118: ·ñ³ë»ÝÛ³Ï³ÛÇÝ ·Çñù, Ù³ïÛ³Ý, 70-200¿ç, ïáÕ³ÝÇ, ëåÇï³Ï ¿ç»ñáí
D119: 39132110 | E119: ãÑñÏÇ½íáÕ å³Ñ³ñ³Ý, ÷³ëï³ÃÕÃ»ñÇ ¨ ³ÛÉ ³ñÅ»ùÝ»ñÇ å³Ñå³ÝÙ³Ý Ñ³Ù³ñ
D120: 30197321 | E120: Ï³ñÇã, ÙÇÝã¨ 20 Ã»ñÃÇ Ñ³Ù³ñ
D121: 30197322 | E121: Ï³ñÇã, 20-50 Ã»ñÃÇ Ñ³Ù³ñ
D122: 30197323 | E122: Ï³ñÇã, 50-Çó ³í»ÉÇ Ã»ñÃÇ Ñ³Ù³ñ
D123: 30197340 | E123: ³å³Ï³ñÇã
D124: 30192710 | E124: ëáëÝÓ³Ù³ïÇï, ·ñ³ë»ÝÛ³Ï³ÛÇÝ
D125: 24911200 | E125: ëáëÇÝÓ, ¿ÙáõÉëÇ³
D126: 39263310 | E126: ûñ³óáõÛó, ë»Õ³ÝÇ
D127: 39263320 | E127: ûñ³óáõÛó, å³ïÇ
D128: 30197633 | E128: ÃáõÕÃ, ý³ùëÇ, Å³å³í»Ý
D129: 39263410 | E129: ³Ùñ³Ï, Ù»ï³ÕÛ³, ÷áùñ
D130: 39263420 | E130: ³Ùñ³Ï, Ù»ï³ÕÛ³, Ù»Í
D131: 30192720 | E131: ·Í³ÝßÇã
D132: 30192135 | E132: ·ñ³ýÇï» ÙÇçáõÏ, Ù³ïÇïÇ Ñ³Ù³ñ
D133: 30192136 | E133: Ù³ïÇï, ·ñ³ýÇï», ï»Õ³¹ñíáÕ ÙÇçáõÏáí
D134: 30192137 | E134: Ù³ïÇï, ·ñ³ýÇï» ÙÇçáõÏáí, Ñ³ë³ñ³Ï
D135: 30192151 | E135: ÏÝÇù, ³íïáÙ³ï, áõÕÕ³ÝÏÛáõÝ
D136: 30192152 | E136: ÏÝÇù, ³íïáÙ³ï, ÏÉáñ
D137: 30197111 | E137: Ï³ñÇãÇ Ù»ï³Õ³É³ñ» Ï³å»ñ, ÷áùñ
D138: 30197112 | E138: Ï³ñÇãÇ Ù»ï³Õ³É³ñ» Ï³å»ñ, ÙÇçÇÝ
D139: 30141200 | E139: Ñ³ßí³ë³ñù, ·ñ³ë»ÝÛ³Ï³ÛÇÝ
D140: 30197331 | E140: ¹³ÏÇã, ù³ÝáÝáí
D141: 39292510 | E141: ù³ÝáÝ, åÉ³ëïÇÏ
D142: 30192740 | E142: ÃáõÕÃ, ·áõÝ³íáñ, A4 Ó¨³ã³÷Ç
D143: 30192730 | E143: Ï³½Ù, É³ÙÇÝ³óÇ³ÛÇ Ã³Õ³ÝÃ, A4 Ó¨³ã³÷Ç
D144: 30197634 | E144: Ñ³ïáõÏ ÃÕÃ»ñ, ïåÇãÇ Ñ³Ù³ñ
D145: 30197635 | E145: ÃáõÕÃ, Ï³í×³Í, A4 Ó¨³ã³÷Ç
D146: 30192114 | E146: Ã³Ý³ù, ÏÝÇùÇ µ³ñÓÇÏÇ Ñ³Ù³ñ
D147: 39263510 | E147: ë»ÕÙ³Ï, ÷áùñ
D148: 39263520 | E148: ë»ÕÙ³Ï, ÙÇçÇÝ
D149: 39263530 | E149: ë»ÕÙ³Ï, Ù»Í
D150: 30199410 | E150: ÇÝùÝ³ÏåãáõÝ ÃáõÕÃ, A4
D151: 30193700 | E151: ÃÕÃ³¹³ñ³Ï, Ñ³ñÏ»ñáí, åÉ³ëïÙ³ë»
D152: 30192100 | E152: é»ïÇÝ, Ñ³ë³ñ³Ï
D153: 30197636 | E153: Ù³·³Õ³Ã³ÃáõÕÃ A4 Ó¨³ã³÷Ç
D154: 30193600 | E154: ûñ³óáõÛóÇ ï³Ï¹Çñ, åÉ³ëïÙ³ë»
D155: 30192750 | E155: ýÉáÙ³ëï»ñÝ»ñÇ Ñ³í³ù³Íáõ
D156: 30192760 | E156: ëñÇã, ëáíáñ³Ï³Ý
D157: 39263600 | E157: ·ñã³ïáõ÷,·ñ³ë»ÝÛ³Ï³ÛÇÝ
D158: 30195931 | E158: ·ñ³ï³Ëï³Ï Ù³ñÏ»ñáí ·ñ»Éáõ Ñ³Ù³ñ, Ï³ËáíÇ
D159: 30195932 | E159: ·ñ³ï³Ëï³Ï Ù³ñÏ»ñáí ·ñ»Éáõ Ñ³Ù³ñ, »ñ»ù áïÇÏáí
D160: 30195500 | E160: ·ñ³ï³Ëï³Ï Ï³íÇ×áí ·ñ»Éáõ Ñ³Ù³ñ
D161: 30197121 | E161: Ïá×·³Ù, »ñÏ³ÃÛ³
D162: 30197122 | E162: Ïá×·³Ù, åÉ³ëïÙ³ë» ·ÉËÇÏáí
D163: 30192770 | E163: åÉ³ëïÇÉÇÝ, ïáõ÷áí
D164: 30192781 | E164: ¿ç³µ³Å³ÝÇã, ÃÕÃ»
D165: 30192782 | E165: ¿ç³µ³Å³ÝÇã, åÉ³ëïÇÏ
D166: 30197637 | E166: ÃáõÕÃ, Ï³½ÙÇ, ëïí³ñ³ÃÕÃ»
D167: 33711720 | E167: ³ï³ÙÇ Ù³ÍáõÏ
D168: 39831241 | E168: û×³é Ó»éùÇ
D169: 39138110 | E169: ³Ãáé, Ù»ï³ÕÛ³
D170: 39138120 | E170: ³Ãáé, ÷³ÛïÛ³
D171: 39138130 | E171: ³Ãáé, ³ßË³ï³Ýù³ÛÇÝ
D172: 39138310 | E172: µ³½Ï³Ãáé, ß³ñÅ³Ï³Ý, Ï³ßí»
D173: 39138320 | E173: µ³½Ï³Ãáé, ß³ñÅ³Ï³Ý, ÏïáñÇó
D174: 39138330 | E174: µ³½Ï³Ãáé, Õ»Ï³í³ñÇ
D175: 39831242 | E175: Éí³óùÇ ÷áßÇ, Ó»éùáí Éí³Ý³Éáõ Ñ³Ù³ñ
D176: 39831243 | E176: Éí³óùÇ ÷áßÇ, ³íïáÙ³ï
D177: 39836000 | E177: ³í»É, ëáíáñ³Ï³Ý
D178: 39837000 | E178: ó³Ë³í»É
D179: 33761000 | E179: ½áõ·³ñ³ÝÇ ÃáõÕÃ, éáõÉáÝáí
D180: 39812210 | E180: ëåáõÝ· ÷³ÛÉ, ÏáßÇÏÇ ÷³ÛÉ»óÙ³Ý Ñ³Ù³ñ
D181: 39812220 | E181: ùëáõù, ÏáßÇÏÇ ÷³ÛÉ»óÙ³Ý Ñ³Ù³ñ
D182: 31531210 | E182: 1.¿É»Ïïñ³Ï³Ý É³Ùå, 60W, 80W, 100W
D183: 31531220 | E183: 2.¿É»Ïïñ³Ï³Ý É³Ùå, 150W
D184: 31531230 | E184: 3.¿É»Ïïñ³Ï³Ý É³Ùå, 200W
D185: 31531300 | E185: ïÝï»ëáÕ É³Ùå»ñ
D186: 44411110 | E186: çñÇ Íáñ³Ï, ÷³Ï³Ý
D187: 44411120 | E187: çñÇ Íáñ³Ï, 2 ÷³Ï³Ýáí
D188: 39224331 | E188: ¹áõÛÉ, åÉ³ëïÙ³ë»
D189: 39224332 | E189: ¹áõÛÉ, óÇÝÏ³å³ï
D190: 39224341 | E190: ³Õµ³ñÏÕ, åÉ³ëïÙ³ë»
D191: 39224342 | E191: ³Õµ³ñÏÕ, Ù»ï³ÕÛ³
D192: 39515450 | E192: ÑáñÇ½áÝ³Ï³Ý ß»ñï³í³ñ³·áõÛñ
D193: 39515440 | E193: áõÕÕ³Ñ³Û³ó ß»ñï³í³ñ³·áõÛñ
D194: 31531400 | E194: ç³Ñ
D195: 31521110 | E195: Éáõë³óÇñ 59,5x59,5
D196: 31521120 | E196: Éáõë³óÇñ 60x10
D197: 31521130 | E197: Éáõë³óÇñ 120x10
D198: 31531500 | E198: ó»ñ»Ï³ÛÇÝ É³Ùå 60ëÙ
D199: 31531600 | E199: ó»ñ»Ï³ÛÇÝ É³Ùå 120ëÙ
D200: 19641000 | E200: åáÉÇ¿ÃÇÉ»Ý³ÛÇÝ å³ñÏ, ³ÕµÇ Ñ³Ù³ñ
... 158 more rows
